Cogmind - Beta 11 X8 @@@ ROGUE MODE // 2021.11.22 @ 17:54:11 Player: youngster Result: Destroyed by S-43 Plague with Heavy Machine Gun Performance ------------- Evolutions (7) 3500 Regions Visited (25) 5000 Robots Destroyed (204) 1020 Value Destroyed (6901) 6901 Prototype IDs (60) 1200 Alien Tech Used (2) 400 Bonus (2295) 2295 TOTAL SCORE: 20316 Bonus ------- High Alert Combat Kills 349 Follower Combat Kills 146 Entered DSFs 500 Met Data Miner 300 Met Warlord at Base 500 MAIN.C Attacked Warlord 500 Cogmind --------- Core Integrity 0/1300 Matter 264/300 Energy 78/100 System Corruption 4% Temperature Cool (0) Movement Core (50) Location -3/Testing Parts ------- > --- POWER (2) -------- (None) > --- PROPULSION (7) --- (None) > --- UTILITY (9) ------ (None) > --- WEAPON (3) ------- (None) > --- INVENTORY (5) ---- Vortex Chain Reactor Advanced Matter Compressor (0) Peak State ------------ > --- POWER ------------ Vortex Chain Reactor > --- PROPULSION ------- VTOL Module Cooled Cesium-ion Thruster Cooled Cesium-ion Thruster Field Propulsion Drive Electron Diverter Electron Diverter > --- UTILITY ---------- Experimental Heat Sink Improved Signal Interpreter Advanced Terrain Scanner Advanced Targeting Computer Advanced Melee Analysis Suite Improved Actuator Array Advanced Hacking Suite System Shield > --- WEAPON ----------- Powered Hammer Powered Hammer Vortex Lance > --- INVENTORY -------- Advanced Shield Generator Vortex Catalyst Activator [Rating: 114] Favorites ----------- Power Improved Ion Engine Engine Improved Ion Engine Power Core Light Nuclear Core Reactor Light Antimatter Reactor Propulsion Light Treads Treads Light Treads Leg Carbon-fiber Leg Wheel Armored Wheel Hover Unit Combat Airjet Flight Unit Cooled Cesium-ion Thruster Utility Large Storage Unit Device Weapon Cycler Storage Large Storage Unit Processor Advanced Targeting Computer Hackware System Shield Protection Utility Shielding Weapon Advanced Assault Cannon Energy Gun Medium Laser Energy Cannon Particle Cannon Ballistic Gun Light Assault Rifle Ballistic Cannon Advanced Assault Cannon Launcher Missile Launcher Impact Weapon Powered Hammer Slashing Weapon Scythe Piercing Weapon Vortex Lance Build | -11 -10 -9 -9 -9 -8 -8 -7 -7 -6 -6 -6 -6 -5 -5 -5 -5 -5 -4 -4 -4 -4 -4 -3 -3 -3 ------- Run | Scr Mat Mat Min Exi Min Mat Fac DSF Fac Low Low Dat Pro Fac Upp Upp War Pro Fac Upp Upp Zhi Pro Res Tes Slots Evolved 14 | . . 2 . . . 2 2 . 2 . . . . 2 . . . . 2 . . . . 2 . Power 1 | . . . . . . . . . . . . . . . . . . . 1 . . . . . . Propulsion 5 | . . 1 . . . 1 . . 1 . . . . 1 . . . . . . . . . 1 . Utility 7 | . . 1 . . . . 2 . 1 . . . . 1 . . . . 1 . . . . 1 . Weapon 1 | . . . . . . 1 . . . . . . . . . . . . . . . . . . . Parts Attached 336 | 7 13 51 16 1 9 30 4 14 77 2 3 . 13 29 4 5 11 8 10 6 2 5 7 4 5 Power 21 | 1 1 4 . . . . . 1 4 . . . 2 . . . . 1 2 2 1 . 1 . 1 Engine 11 | 1 1 3 . . . . . 1 3 . . . 2 . . . . . . . . . . . . Core 1 | . . 1 . . . . . . . . . . . . . . . . . . . . . . . Reactor 9 | . . . . . . . . . 1 . . . . . . . . 1 2 2 1 . 1 . 1 Propulsion 69 | 2 2 11 2 . 1 6 . 4 24 . . . 2 7 1 . 2 . 3 . . . 1 1 . Treads 40 | 2 2 11 1 . 1 6 . 4 11 . . . . 1 . . . . . . . . . 1 . Leg 13 | . . . . . . . . . 6 . . . 2 4 . . . . . . . . 1 . . Wheel 4 | . . . 1 . . . . . 3 . . . . . . . . . . . . . . . . Hover 4 | . . . . . . . . . 4 . . . . . . . . . . . . . . . . Flight 8 | . . . . . . . . . . . . . . 2 1 . 2 . 3 . . . . . . Utility 143 | 2 8 20 8 1 2 14 4 7 28 2 1 . 2 13 1 4 7 3 5 . 1 4 2 2 2 Device 80 | 1 2 6 4 . 1 10 2 5 22 1 . . . 7 1 1 7 1 4 . . 2 1 1 1 Storage 7 | 1 2 . . . . . . . 1 . . . 1 . . . . 1 . . . . . . 1 Processor 11 | . . 1 . . . 1 1 . 3 1 . . . . . 2 . . 1 . . . 1 . . Hackware 5 | . . . . . . . . . . . . . . 1 . 1 . 1 . . 1 1 . . . Protection 40 | . 4 13 4 1 1 3 1 2 2 . 1 . 1 5 . . . . . . . 1 . 1 . Artifact . | . . . . . . . . . . . . . . . . . . . . . . . . . . Weapon 103 | 2 2 16 6 . 6 10 . 2 21 . 2 . 7 9 2 1 2 4 . 4 . 1 3 1 2 Energy Gun 2 | . 1 . . . . . . . . . . . . . . . 1 . . . . . . . . Energy Cannon 3 | . . 2 . . . . . . . . . . . . . . . . . . . . . 1 . Ballistic Gun 20 | 2 1 8 . . . 5 . . 3 . . . 1 . . . . . . . . . . . . Ballistic Cannon 22 | . . 2 3 . 3 2 . 1 6 . . . . 4 . . . . . . . . 1 . . Launcher 27 | . . 3 3 . 3 2 . . 5 . 1 . 2 3 1 1 . 1 . 2 . . . . . Special Weapon . | . . . . . . . . . . . . . . . . . . . . . . . . . . Impact Weapon 13 | . . 1 . . . 1 . . . . . . . 2 1 . . 2 . 1 . 1 2 . 2 Slashing Weapon 13 | . . . . . . . . 1 7 . 1 . 4 . . . . . . . . . . . . Piercing Weapon 3 | . . . . . . . . . . . . . . . . . 1 1 . 1 . . . . . Special Melee Weapon . | . . . . . . . . . . . . . . . . . . . . . . . . . . Unidentified Prototypes 19 | . . 1 . . . . . . 1 . . . . 1 . . 7 2 2 . . 3 1 . 1 Corrupted Parts 1 | . . . 1 . . . . . . . . . . . . . . . . . . . . . . System Corruption 2 | . . . 2 . . . . . . . . . . . . . . . . . . . . . . Parts Lost 75 | . 2 10 1 . 1 . . 2 19 . . . 2 18 . . 1 . . 2 . . 7 1 9 Power 7 | . . 1 . . . . . 1 3 . . . 1 . . . . . . 1 . . . . . Propulsion 25 | . . 1 1 . 1 . . . 9 . . . . 6 . . . . . . . . 6 . 1 Utility 23 | . 1 3 . . . . . 1 1 . . . 1 6 . . 1 . . . . . 1 1 7 Weapon 20 | . 1 5 . . . . . . 6 . . . . 6 . . . . . 1 . . . . 1 Highest Loss Streak 10 | . 1 4 1 . 1 . . 1 9 . . . 2 10 . . 1 . . 2 . . 5 1 7 Average Slot Usage (%) 92 | . 98 99 100 100 99 99 100 99 84 100 100 100 98 84 40 60 73 84 90 92 75 77 52 55 25 Engine 7 | . 14 9 11 11 11 9 7 6 4 6 6 6 5 4 . . . . . . . . . . . Treads 18 | . 28 32 22 22 21 27 23 23 17 . . . . 4 . . . . . . . . . 4 1 Leg 4 | . . . . . . . . . 4 33 33 33 33 12 . . . . . . . . 1 4 1 Wheel 2 | . . . 10 11 11 9 7 7 2 . . . . . . . . . . . . . . . . Flight 3 | . . . . . . . . . . . . . . 7 14 17 19 29 27 31 31 31 11 . . Device 4 | . 1 . . . 4 6 15 13 9 6 3 . . 8 4 9 8 8 15 15 10 6 1 1 . Storage 8 | . 14 11 11 11 11 9 7 7 6 6 6 6 6 4 . . . . . . . . . . . Processor 11 | . . 7 11 11 11 9 15 15 16 15 20 20 20 16 11 16 23 17 15 15 15 15 11 14 9 Hackware 1 | . . . . . . . . . . . . . . . . 4 5 5 10 10 12 17 21 19 6 Protection 7 | . 11 14 10 11 6 1 . 1 1 10 9 13 12 5 . . . . . . . . . 1 1 Ballistic Gun 6 | . 27 10 . . . 9 7 1 1 . . . . . . . . . . . . . . . . Ballistic Cannon 8 | . . 8 20 22 21 16 15 16 9 . . . . 8 . . . . . . . . . 4 . Impact Weapon 1 | . . . . . . . . . . . . . . . 8 11 11 10 10 9 . 1 2 . . Slashing Weapon 3 | . . . . . . . . 4 6 20 19 20 19 6 . . . . . . . . . . . Naked Turns 7 | . . . . . . . . . . . . . . . . . . . . . . . . . 7 Heaviest Build 66 | 14 31 43 40 40 40 57 55 59 53 54 46 46 48 66 11 14 21 42 30 42 36 39 48 17 52 Greatest Support 132 | 40 40 60 60 40 40 62 12 84 132 85 85 85 85 100 12 18 37 40 35 42 39 39 39 35 35 Greatest Overweight (x) 15 | 1 . . 3 3 3 4 4 4 15 . . . . 1 . 4 5 1 9 1 . . 1 1 1 Average Overweight (x) . | . . . . 1 2 2 3 2 1 . . . . . . . . . . . . . . . . Largest Inventory Capacity 35 | 8 15 15 15 15 15 15 15 15 15 15 15 15 15 15 5 5 5 35 5 5 5 5 5 5 5 Average Capacity 13 | 7 13 15 15 15 15 15 15 15 15 15 15 15 15 14 5 5 5 5 5 5 5 5 5 5 5 Most Carried 15 | 4 15 15 15 15 15 15 15 15 15 15 15 15 15 15 5 5 5 5 5 5 5 5 5 5 5 Average Carried 12 | 2 10 14 14 15 14 14 14 14 13 14 14 15 14 13 4 4 4 4 4 4 4 4 4 5 2 Final Capacity 15 | 8 15 15 15 15 15 15 15 15 15 15 15 15 15 5 5 5 5 5 5 5 5 5 5 5 5 Final Carried 15 | 4 15 15 15 15 15 15 15 15 15 15 15 15 15 5 5 5 5 5 5 4 5 5 5 5 3 Class Distribution -------------------- 48% | Mutant 23% | Scavenger-Mutant 11% | Gunner 3% | Sprinter Dominant Class ---------------- Mutant | -10/Materials Scavenger-Mutant | -9/Materials Mutant | -9/Mines Mutant | -9/Exiles Mutant | -8/Mines Gunner | -8/Materials Skirmisher | -7/Factory Mutant | -7/DSF Mutant | -6/Factory Scavenger-Mutant | -6/Lower Caves Scavenger-Mutant | -6/Lower Caves Scavenger-Mutant | -6/Data Miner Scavenger-Mutant | -5/Proximity Caves Mutant | -5/Factory Sprinter | -5/Upper Caves Mutant | -5/Upper Caves Derelict-Sprinter | -5/Warlord Sprinter | -4/Proximity Caves Derelict-Sprinter | -4/Factory Hacker-Sprinter | -4/Upper Caves Hacker-Sprinter | -4/Upper Caves Hacker-Sprinter | -4/Zhirov Hacker-Mutant | -3/Proximity Caves Hacker-Mutant | -3/Research Mutant | -3/Testing Resources | -11 -10 -9 -9 -9 -8 -8 -7 -7 -6 -6 -6 -6 -5 -5 -5 -5 -5 -4 -4 -4 -4 -4 -3 -3 -3 ----------- Run | Scr Mat Mat Min Exi Min Mat Fac DSF Fac Low Low Dat Pro Fac Upp Upp War Pro Fac Upp Upp Zhi Pro Res Tes Matter Collected 7268 | 286 418 1080 338 . 297 650 . 462 2037 10 98 . 258 713 30 69 65 146 85 3 38 109 . 76 . Remotely 3242 | 98 84 290 198 . 140 259 . 457 1408 . . . . 308 . . . . . . . . . . . Salvage Created 6843 | 103 586 1139 312 . 229 652 . 281 1710 68 167 . 167 691 . 12 . 267 119 . . 201 . 66 73 Parts 340 | 6 51 70 22 . 16 44 . 10 74 2 11 . 3 18 . 1 . 5 1 2 . 2 . . 2 Haulers Intercepted 15 | . 2 5 . . . 3 . . 1 . . . . 3 . . . . 1 . . . . . . Recyclers Shooed 5 | . . 1 . . 1 . . . 3 . . . . . . . . . . . . . . . . Parts Field Recycled . | . . . . . . . . . . . . . . . . . . . . . . . . . . Retrieved Matter . | . . . . . . . . . . . . . . . . . . . . . . . . . . Parts Self-Destructed 32 | . . . . . . . . . . 2 9 . 8 . . 1 8 2 . 2 . . . . . Prevented 2 | . . . . . . . . . . . . . . . . . . 2 . . . . . . . Kills | -11 -10 -9 -9 -9 -8 -8 -7 -7 -6 -6 -6 -6 -5 -5 -5 -5 -5 -4 -4 -4 -4 -4 -3 -3 -3 ------- Run | Scr Mat Mat Min Exi Min Mat Fac DSF Fac Low Low Dat Pro Fac Upp Upp War Pro Fac Upp Upp Zhi Pro Res Tes Combat Hostiles Destroyed 160 | . 15 27 14 . 11 16 . 9 31 1 4 . 8 10 . 1 . 6 1 4 . . . 1 1 Melee 20 | . . 2 . . . . . . 7 1 1 . 1 4 . . . 3 1 . . . . . . Guns 33 | . 15 14 . . . 2 . . 2 . . . . . . . . . . . . . . . . Cannons 50 | . . 3 7 . 2 7 . 9 16 . . . . 5 . . . . . . . . . 1 . AOE 55 | . . 8 7 . 9 7 . . 6 . 3 . 7 1 . 1 . 2 . 4 . . . . . Classes Destroyed 18 | 2 4 1 1 . 3 2 . 2 3 . . . . . . . . . . . . . . . . Worker 8 | . . . . . . 2 . . 4 . . . . 2 . . . . . . . . . . . Builder 4 | . . . . . 1 . . . 3 . . . . . . . . . . . . . . . . Tunneler 2 | 1 . . . . 1 . . . . . . . . . . . . . . . . . . . . Hauler 15 | . 2 5 . . . 3 . . 1 . . . . 3 . . . . 1 . . . . . . Recycler 10 | 1 1 1 . . 1 2 . . 3 . . . . 1 . . . . . . . . . . . Operator 1 | . . . . . . 1 . . . . . . . . . . . . . . . . . . . Watcher 4 | . 1 2 . . . . . . 1 . . . . . . . . . . . . . . . . Swarmer 47 | . 9 7 4 . 7 7 . 3 . . . . 2 . . 1 . 2 1 4 . . . . . Saboteur 1 | . . . . . . . . . 1 . . . . . . . . . . . . . . . . Grunt 65 | . 6 12 7 . 2 3 . 2 15 . 2 . 4 9 . . . 3 . . . . . . . Brawler 5 | . . . . . 1 . . . 1 . . . 2 1 . . . . . . . . . . . Duelist 4 | . . . 1 . . . . . 2 . 1 . . . . . . . . . . . . . . Protector 1 | . . . . . . . . . 1 . . . . . . . . . . . . . . . . Sentry 22 | . . 8 2 . . 6 . . 2 1 1 . . . . . . 1 . . . . . 1 . Specialist 8 | . . . . . . . . 3 4 . . . . . . . . . . . . . . . 1 Hunter 3 | . . . . . 1 . . . 2 . . . . . . . . . . . . . . . . Programmer 2 | . . . . . . . . . 2 . . . . . . . . . . . . . . . . Heavy 2 | . . . . . . . . 1 1 . . . . . . . . . . . . . . . . Best Kill Streak 11 | 1 3 5 6 . 4 7 . 5 11 1 3 . 4 5 . 1 . 3 1 4 . . . 1 1 Combat Bots Only 8 | . 3 5 6 . 4 7 . 5 8 1 3 . 4 4 . 1 . 3 1 4 . . . 1 1 Max Kills in Single Turn 6 | 1 1 3 4 . 2 6 . 1 2 1 2 . 2 3 . 1 . 2 1 4 . . . 1 1 Gunslinging . | . . . . . . . . . . . . . . . . . . . . . . . . . . Exploded 6 | . . 3 4 . 2 6 . . 2 . 2 . 2 1 . 1 . 2 . 4 . . . . . Melee 1 | . . 1 . . . . . . 1 1 1 . 1 1 . . . 1 1 . . . . . . Uniques/NPCs Destroyed . | . . . . . . . . . . . . . . . . . . . . . . . . . . Combat | -11 -10 -9 -9 -9 -8 -8 -7 -7 -6 -6 -6 -6 -5 -5 -5 -5 -5 -4 -4 -4 -4 -4 -3 -3 -3 -------- Run | Scr Mat Mat Min Exi Min Mat Fac DSF Fac Low Low Dat Pro Fac Upp Upp War Pro Fac Upp Upp Zhi Pro Res Tes Damage Taken 14406 | . 797 1745 463 . 316 326 . 501 3180 233 112 . 709 2426 . 93 88 48 145 263 . . 838 224 1899 Core 3468 | . 97 206 38 . 27 13 . 92 505 20 21 . 53 485 . 18 47 14 50 48 . . 416 30 1288 Absorbed by Shields 36 | . . . . . . . . . . . . . . 36 . . . . . . . . . . . Reduced by Siege Mode 54 | . . . . . . . . . . . . . . 54 . . . . . . . . . . . Core Remaining (%) 62 | 100 61 . . . 32 97 . 86 . . . . 29 . . . . 43 . . . . 55 . . Volleys Fired 396 | 4 62 83 20 . 20 26 . 20 88 . 2 . 13 36 . 2 . 1 . 2 . . . 7 10 Largest 3 | 2 2 2 2 . 2 3 . 3 3 . 1 . 1 2 . 1 . 1 . 1 . . . 2 2 Hottest 152 | 40 70 91 78 . 78 132 . 144 144 . 39 . 39 96 . 43 . 20 . 20 . . . 152 152 Shots Fired 778 | 8 124 160 34 . 30 73 . 51 193 . 2 . 13 61 . 2 . 1 . 2 . . . 11 13 Gun 318 | 8 124 115 . . . 27 . 8 36 . . . . . . . . . . . . . . . . Cannon 408 | . . 40 31 . 20 44 . 43 147 . . . . 59 . . . . . . . . . 11 13 Launcher 52 | . . 5 3 . 10 2 . . 10 . 2 . 13 2 . 2 . 1 . 2 . . . . . Special . | . . . . . . . . . . . . . . . . . . . . . . . . . . Kinetic 696 | 8 118 146 31 . 20 71 . 51 183 . . . . 59 . . . . . . . . . 6 3 Thermal 30 | . 6 9 . . . . . . . . . . . . . . . . . . . . . 5 10 Explosive 49 | . . 5 3 . 10 2 . . 10 . 2 . 13 2 . 2 . . . . . . . . . Electromagnetic . | . . . . . . . . . . . . . . . . . . . . . . . . . . Entropic 3 | . . . . . . . . . . . . . . . . . . 1 . 2 . . . . . Robot Hit Streak 26 | 3 17 19 7 . 9 12 . 18 15 . 7 . 5 26 . 1 . . . 2 . . . 10 11 Robot Miss Streak 4 | 1 3 4 3 . 1 3 . 2 3 . . . 2 1 . 2 . . . 1 . . . 2 2 Penetration Max 1 | . . . . . . . . . 1 . . . . . . . . . . . . . . . . Secondary Targets 5 | . 4 1 . . . . . . . . . . . . . . . . . . . . . . . Max Gunslinging Chain 1 | . 1 1 . . . . . . . . . . . . . . . . . . . . . . . Shots Hit Robots 637 | 4 83 116 22 . 18 46 . 35 167 8 4 . 13 71 . 1 . 8 5 1 . 4 14 10 7 Core Hits 342 | 3 34 55 19 . 18 31 . 14 89 2 7 . 22 30 . 1 . 6 1 4 . . . 4 2 Critical Kills 3 | . 1 1 . . . . . . . . . . . . . . . . . . . . . . 1 Critical Parts Destroyed 6 | . 1 3 . . . . . . . . . . . . . . . 1 . . . 1 . . . Critical Strikes 30 | . 3 4 1 . . 1 . 1 8 2 . . 1 5 . . . 2 . . . 1 . . 1 Burn 1 | . 1 . . . . . . . . . . . . . . . . . . . . . . . . Meltdown 1 | . . . . . . . . . . . . . . . . . . . . . . . . . 1 Destroy 4 | . 2 2 . . . . . . . . . . . . . . . . . . . . . . . Blast 14 | . . . 1 . . 1 . 1 7 . . . . 4 . . . . . . . . . . . Smash 4 | . . 2 . . . . . . . . . . . . . . . 1 . . . 1 . . . Sever 5 | . . . . . . . . . 1 2 . . 1 1 . . . . . . . . . . . Sunder 1 | . . . . . . . . . . . . . . . . . . 1 . . . . . . . Melee Attacks 172 | . . 4 . . . . . 6 45 12 2 . 6 24 1 . 7 22 18 2 . 4 18 . 1 Impact 67 | . . 4 . . . . . . . . . . . 1 1 . 7 16 13 2 . 4 18 . 1 Slashing 94 | . . . . . . . . 6 45 12 2 . 6 23 . . . . . . . . . . . Piercing . | . . . . . . . . . . . . . . . . . . . . . . . . . . Entropic 11 | . . . . . . . . . . . . . . . . . . 6 5 . . . . . . Sneak Attacks 5 | . . . . . . . . . 4 . . . . . . . . . 1 . . . . . . Combat Hostiles . | . . . . . . . . . . . . . . . . . . . . . . . . . . Follow-up Attacks 26 | . . . . . . . . . 7 2 1 . 2 4 . . . 3 3 . . . 4 . . Damage Inflicted 21629 | 48 802 2375 1063 . 1153 1609 5 1038 6032 248 363 . 1464 2349 . 76 . 714 257 628 . 398 436 276 295 Guns 2643 | 48 781 880 . . . 298 . 114 522 . . . . . . . . . . . . . . . . Cannons 7579 | . . 551 469 . 270 761 . 790 2793 . . . . 1426 . . . . . . . . . 276 243 Explosions 7202 | . . 862 589 . 863 499 . . 1451 . 301 . 1296 318 . 76 . 319 . 628 . . . . . Melee 4064 | . . 64 . . . . . 134 1266 248 62 . 168 599 . . . 395 257 . . 398 436 . 37 Ramming 141 | . 21 18 5 . 20 51 5 . . . . . . 6 . . . . . . . . . . 15 Kinetic 9676 | 48 720 1307 469 . 270 1059 . 904 3315 . . . . 1426 . . . . . . . . . 120 38 Thermal 844 | . 61 422 . . . . . . . . . . . . . . . . . . . . . 156 205 Explosive 5957 | . . 564 589 . 863 499 . . 1451 . 301 . 1296 318 . 76 . . . . . . . . . Electromagnetic . | . . . . . . . . . . . . . . . . . . . . . . . . . . Impact 1210 | . . 64 . . . . . . . . . . . . . . . 89 186 . . 398 436 . 37 Slashing 2477 | . . . . . . . . 134 1266 248 62 . 168 599 . . . . . . . . . . . Piercing . | . . . . . . . . . . . . . . . . . . . . . . . . . . Entropic 1324 | . . . . . . . . . . . . . . . . . . 625 71 628 . . . . . Highest Corruption 9 | . 3 3 5 2 2 . . . 9 9 9 9 9 1 1 1 1 . . . . . 4 . 4 Average Corruption 3 | . 2 2 2 2 2 . . . 4 9 9 9 9 1 1 1 1 . . . . . 3 . 4 Corruption Purged 3 | . . . 3 . . . . . . . . . . . . . . . . . . . . . . Effects 109 | . 10 18 16 2 4 . . . 18 10 12 2 13 . . 1 . . . . . . 3 . . Message Errors 29 | . 3 4 5 2 2 . . . 5 1 2 1 2 . . 1 . . . . . . 1 . . Matter Fused 28 | . 3 5 4 . . . . . 2 3 6 1 4 . . . . . . . . . . . . Heat Flow Errors 8 | . . 1 2 . . . . . 3 . . . 2 . . . . . . . . . . . . Energy Discharges 16 | . 4 1 2 . . . . . 5 3 1 . . . . . . . . . . . . . . Parts Rejected 1 | . . . . . . . . . . . . . 1 . . . . . . . . . . . . Data Loss (minor) 23 | . . 6 3 . 2 . . . 2 1 3 . 4 . . . . . . . . . 2 . . Data Loss (major) 2 | . . . . . . . . . . 2 . . . . . . . . . . . . . . . Weapon Failures 2 | . . 1 . . . . . . 1 . . . . . . . . . . . . . . . . Overload Shots . | . . . . . . . . . . . . . . . . . . . . . . . . . . Overflow Damage 1083 | . . 63 16 . 53 17 . 2 305 . . . 23 25 . . . 43 13 51 . 361 111 . . Projectiles 75 | . . . . . 2 . . 2 68 . . . . 3 . . . . . . . . . . . Explosions 250 | . . 43 16 . 51 17 . . 44 . . . . 21 . . . 7 . 51 . . . . . Melee 758 | . . 20 . . . . . . 193 . . . 23 1 . . . 36 13 . . 361 111 . . Knockbacks 57 | . . 4 2 . 5 3 . 6 19 . . . . 14 . . . . . . . . 3 . 1 Impact 4 | . . 1 . . . . . . . . . . . . . . . . . . . . 3 . . Kinetic 53 | . . 3 2 . 5 3 . 6 19 . . . . 14 . . . . . . . . . . 1 Secondary . | . . . . . . . . . . . . . . . . . . . . . . . . . . Self-Inflicted Damage 921 | . . 97 71 . 99 . . . 115 . . . 92 213 . 56 . . . 171 . . . . 7 Shots 18 | . . 3 2 . 3 . . . 2 . . . 2 4 . 1 . . . 1 . . . . . Rammed 27 | . 5 7 2 . 3 6 1 . . . . . . 1 . . . . . . . . . . 2 Targets Rammed 28 | . 5 7 2 . 4 6 1 . . . . . . 1 . . . . . . . . . . 2 Kicked . | . . . . . . . . . . . . . . . . . . . . . . . . . . Crushed 1 | . . . . . 1 . . . . . . . . . . . . . . . . . . . . Highest Temperature 318 | . 70 131 192 . 118 171 . 149 148 3 1 . 278 318 . . 6 6 . 37 10 2 . . 20 Average Temperature 42 | . 16 23 71 . 33 53 . 36 35 3 1 . 93 108 . . 4 2 . 17 6 2 . . 11 Received Heat Transfer 3121 | . 234 711 198 . 27 135 . 36 679 84 36 . 249 687 . 9 . . . . . . . 36 . Effects 2 | . . . . . . . . . . . . . . 2 . . . . . . . . . . . Interference 2 | . . . . . . . . . . . . . . 2 . . . . . . . . . . . Siege Activations 1 | . . . . . . . . . . . . . . 1 . . . . . . . . . . . Total Turns 45 | . . . . . . . . . . . . . . 45 . . . . . . . . . . . Longest Duration 45 | . . . . . . . . . . . . . . 45 . . . . . . . . . . . Robots Corrupted . | . . . . . . . . . . . . . . . . . . . . . . . . . . Combat Hostiles . | . . . . . . . . . . . . . . . . . . . . . . . . . . Parts Fried 3 | . . 1 . . . . . . . . . . . . . . . 1 . . . 1 . . . Impact Corruptions 22 | . . 1 . . . . . . . . . . . . . . . 2 1 . . 12 6 . . Robots Melted 1 | . . . . . . . . . . . . . . . . . . . . . . . . . 1 Combat Hostiles 1 | . . . . . . . . . . . . . . . . . . . . . . . . . 1 Parts Melted 4 | . 2 1 . . . . . . . . . . . . . . . . . . . . . . 1 Heat Transferred 964 | . 259 372 . . . . . . . . . . . . . . . . . . . . . 148 185 Parts Sabotaged . | . . . . . . . . . . . . . . . . . . . . . . . . . . Parts Stolen . | . . . . . . . . . . . . . . . . . . . . . . . . . . Parts Stripped . | . . . . . . . . . . . . . . . . . . . . . . . . . . Power Chain Reactions . | . . . . . . . . . . . . . . . . . . . . . . . . . . Missiles Intercepted . | . . . . . . . . . . . . . . . . . . . . . . . . . . Alert | -11 -10 -9 -9 -9 -8 -8 -7 -7 -6 -6 -6 -6 -5 -5 -5 -5 -5 -4 -4 -4 -4 -4 -3 -3 -3 ------- Run | Scr Mat Mat Min Exi Min Mat Fac DSF Fac Low Low Dat Pro Fac Upp Upp War Pro Fac Upp Upp Zhi Pro Res Tes Peak Influence 689 | 10 240 553 410 . 236 483 191 360 689 . . . . 273 . . . . 201 . . . . 85 147 Initial 195 | . 6 25 195 . . 91 191 137 189 . . . . 23 . . . . 81 . . . . 30 47 Average 270 | 3 120 363 330 . 171 284 191 282 426 . . . . 137 . . . . 118 . . . . 55 68 Maximum Alert Level 2 | . 1 2 2 . 1 2 . 1 2 . . . . 1 . . . . 1 . . . . . . Low Security (%) 35 | 100 77 10 10 . 30 32 100 20 6 . . . . 68 . . . . 98 . . . . 100 100 Level 1 42 | . 22 47 63 . 69 48 . 80 46 . . . . 31 . . . . 1 . . . . . . Level 2 21 | . . 42 26 . . 19 . . 46 . . . . . . . . . . . . . . . . Level 3 . | . . . . . . . . . . . . . . . . . . . . . . . . . . Level 4 . | . . . . . . . . . . . . . . . . . . . . . . . . . . Level 5 . | . . . . . . . . . . . . . . . . . . . . . . . . . . High Security . | . . . . . . . . . . . . . . . . . . . . . . . . . . Max Security . | . . . . . . . . . . . . . . . . . . . . . . . . . . Sterilizations 1 | . . . . . . . . 1 . . . . . . . . . . . . . . . . . Squads Dispatched 29 | . 2 4 . . . 1 1 2 13 . . . . 3 . . . . . . . . . . 3 Investigation 9 | . 2 3 . . . 1 1 . 1 . . . . . . . . . . . . . . . 1 Extermination 3 | . . . . . . . . . 2 . . . . 1 . . . . . . . . . . . Reinforcement 13 | . . 1 . . . . . 2 6 . . . . 2 . . . . . . . . . . 2 Assault 4 | . . . . . . . . . 4 . . . . . . . . . . . . . . . . Garrison . | . . . . . . . . . . . . . . . . . . . . . . . . . . Intercept . | . . . . . . . . . . . . . . . . . . . . . . . . . . Construction Impeded . | . . . . . . . . . . . . . . . . . . . . . . . . . . Haulers Reinforced 3 | . . . . . . . . . 1 . . . . 2 . . . . . . . . . . . Active Scanning Responses . | . . . . . . . . . . . . . . . . . . . . . . . . . . Cargo Convoy Interrupts 1 | . . . . . . . . . 1 . . . . . . . . . . . . . . . . Stealth | -11 -10 -9 -9 -9 -8 -8 -7 -7 -6 -6 -6 -6 -5 -5 -5 -5 -5 -4 -4 -4 -4 -4 -3 -3 -3 --------- Run | Scr Mat Mat Min Exi Min Mat Fac DSF Fac Low Low Dat Pro Fac Upp Upp War Pro Fac Upp Upp Zhi Pro Res Tes Distress Signals 9 | . 1 2 1 . . 1 . . 2 . . . . . . . . . . . . . . 1 1 Communications Jammed . | . . . . . . . . . . . . . . . . . . . . . . . . . . Distress Signals . | . . . . . . . . . . . . . . . . . . . . . . . . . . Times Spotted 282 | . 29 40 13 . 11 22 . 9 42 1 4 . 10 27 . 11 15 4 9 11 . . 7 3 14 Peak Tracking Total 15 | . 4 6 5 . 4 7 . 3 7 1 4 . 4 10 . 7 12 3 7 7 . . 5 2 15 Tactical Retreats 20 | . 2 2 1 . . 1 . . 2 . . . . 1 . 4 . . 1 2 . . 3 . 1 Traps | -11 -10 -9 -9 -9 -8 -8 -7 -7 -6 -6 -6 -6 -5 -5 -5 -5 -5 -4 -4 -4 -4 -4 -3 -3 -3 ------- Run | Scr Mat Mat Min Exi Min Mat Fac DSF Fac Low Low Dat Pro Fac Upp Upp War Pro Fac Upp Upp Zhi Pro Res Tes Traps Triggered 11 | . 3 2 . . . . . . 3 . . . . . . . . . 1 . . . . . 2 Indirectly . | . . . . . . . . . . . . . . . . . . . . . . . . . . Trap Hack Attempts . | . . . . . . . . . . . . . . . . . . . . . . . . . . Triggered . | . . . . . . . . . . . . . . . . . . . . . . . . . . Disarmed . | . . . . . . . . . . . . . . . . . . . . . . . . . . Reprogrammed . | . . . . . . . . . . . . . . . . . . . . . . . . . . Reused . | . . . . . . . . . . . . . . . . . . . . . . . . . . Traps Extracted . | . . . . . . . . . . . . . . . . . . . . . . . . . . Installed . | . . . . . . . . . . . . . . . . . . . . . . . . . . Triggered 7 | . . . . . . . . . 2 . . . . . . . 5 . . . . . . . . Machines | -11 -10 -9 -9 -9 -8 -8 -7 -7 -6 -6 -6 -6 -5 -5 -5 -5 -5 -4 -4 -4 -4 -4 -3 -3 -3 ---------- Run | Scr Mat Mat Min Exi Min Mat Fac DSF Fac Low Low Dat Pro Fac Upp Upp War Pro Fac Upp Upp Zhi Pro Res Tes Machines Disabled 37 | . . 4 1 . 6 2 . 2 11 . . . . 9 . . . 1 1 . . . . . . Max in Single Turn 6 | . . 3 1 . 6 1 . 1 3 . . . . 4 . . . 1 1 . . . . . . Garrison Access 1 | . . . . . . . . . . . . . . . . . . . 1 . . . . . . Machines Sabotaged . | . . . . . . . . . . . . . . . . . . . . . . . . . . Garrisons Compromised 1 | . . . . . . . . . 1 . . . . . . . . . . . . . . . . Overloaded Fab Kills . | . . . . . . . . . . . . . . . . . . . . . . . . . . Hacking | -11 -10 -9 -9 -9 -8 -8 -7 -7 -6 -6 -6 -6 -5 -5 -5 -5 -5 -4 -4 -4 -4 -4 -3 -3 -3 --------- Run | Scr Mat Mat Min Exi Min Mat Fac DSF Fac Low Low Dat Pro Fac Upp Upp War Pro Fac Upp Upp Zhi Pro Res Tes Machines Accessed 65 | . 7 12 1 1 . 10 3 . 4 . . 4 . 3 . 1 5 1 2 . 2 5 . 1 3 Terminals 28 | . 5 7 . . . 7 2 . 2 . . . . 2 . . . . 1 . 1 . . 1 . Fabricators 4 | . . . . . . . 1 . . . . . . 1 . . . . . . . . . . 2 Repair Stations 5 | . 1 2 . . . 1 . . 1 . . . . . . . . . . . . . . . . Recycling Units 3 | . 1 2 . . . . . . . . . . . . . . . . . . . . . . . Scanalyzers 4 | . . 1 . . . 2 . . 1 . . . . . . . . . . . . . . . . Garrison Access 2 | . . . . . . . . . . . . . . . . . . . 1 . . . . . 1 Total Hacks 191 | . 22 40 1 1 . 27 4 . 10 . . 30 . 6 . 1 13 1 6 . 2 18 . 3 6 Successful 147 | . 14 26 1 1 . 19 2 . 9 . . 30 . 3 . 1 13 1 3 . 2 18 . 2 2 Failed 44 | . 8 14 . . . 8 2 . 1 . . . . 3 . . . . 3 . . . . 1 4 Catastrophic 7 | . 2 1 . . . . 1 . 1 . . . . . . . . . . . . . . . 2 Database Lockouts . | . . . . . . . . . . . . . . . . . . . . . . . . . . Manual 40 | . 7 20 . . . 9 1 . . . . . . . . . 1 . 1 . . . . . 1 Terminals 79 | . 14 29 . . . 18 2 . 3 . . . . 4 . . . . 5 . 1 . . 3 . Fabricators 8 | . . . . . . . 2 . . . . . . 2 . . . . . . . . . . 4 Repair Stations 16 | . 7 5 . . . 2 . . 2 . . . . . . . . . . . . . . . . Recycling Units 4 | . 1 3 . . . . . . . . . . . . . . . . . . . . . . . Scanalyzers 15 | . . 3 . . . 7 . . 5 . . . . . . . . . . . . . . . . Garrison Access 3 | . . . . . . . . . . . . . . . . . . . 1 . . . . . 2 Terminal Hacks 95 | . 6 9 1 1 . 5 1 . 2 . . 30 . 1 . 1 13 1 2 . 2 18 . 2 . Record 23 | . . 1 . 1 . . . . . . . 11 . . . . 2 1 . . 1 6 . . . Part Schematic 17 | . 1 . . . . . . . . . . 12 . . . . . . . . . 4 . . . Robot Schematic 4 | . . . . . . . . . . . . 4 . . . . . . . . . . . . . Robot Analysis 8 | . . 1 . . . 1 . . . . . . . . . . . . . . . 4 . 2 . Prototype ID Bank 24 | . 2 2 . . . 2 . . . . . 3 . 1 . . 9 . 1 . . 4 . . . Open Door 5 | . . . 1 . . . . . . . . . . . . 1 2 . . . 1 . . . . Open DSF 2 | . . . . . . . 1 . 1 . . . . . . . . . . . . . . . . Branch Access Points 2 | . . . . . . . . . 1 . . . . . . . . . 1 . . . . . . Unreport Threat 1 | . 1 . . . . . . . . . . . . . . . . . . . . . . . . Reinforcement Status 1 | . . 1 . . . . . . . . . . . . . . . . . . . . . . . Hauler Manifests 3 | . 1 1 . . . 1 . . . . . . . . . . . . . . . . . . . Registered Components 1 | . . 1 . . . . . . . . . . . . . . . . . . . . . . . Zone Layout 4 | . 1 2 . . . 1 . . . . . . . . . . . . . . . . . . . Fabricator Hacks 5 | . . . . . . . 1 . . . . . . 2 . . . . . . . . . . 2 Network Status 1 | . . . . . . . . . . . . . . . . . . . . . . . . . 1 Load Schematic 2 | . . . . . . . 1 . . . . . . 1 . . . . . . . . . . . Build 2 | . . . . . . . . . . . . . . 1 . . . . . . . . . . 1 Repair Station Hacks 15 | . 7 4 . . . 2 . . 2 . . . . . . . . . . . . . . . . Scan Component 8 | . 4 2 . . . 1 . . 1 . . . . . . . . . . . . . . . . Repair 7 | . 3 2 . . . 1 . . 1 . . . . . . . . . . . . . . . . Recycling Unit Hacks . | . . . . . . . . . . . . . . . . . . . . . . . . . . Scanalyzer 14 | . . 2 . . . 7 . . 5 . . . . . . . . . . . . . . . . Insert Component 7 | . . 1 . . . 4 . . 2 . . . . . . . . . . . . . . . . Analyze 7 | . . 1 . . . 3 . . 3 . . . . . . . . . . . . . . . . Garrison Access Hacks 1 | . . . . . . . . . . . . . . . . . . . 1 . . . . . . Seal Access 1 | . . . . . . . . . . . . . . . . . . . 1 . . . . . . Unauthorized Hacks 17 | . 1 11 . . . 5 . . . . . . . . . . . . . . . . . . . Terminals 14 | . . 9 . . . 5 . . . . . . . . . . . . . . . . . . . Track 4 | . . 3 . . . 1 . . . . . . . . . . . . . . . . . . . Botnet 6 | . . 3 . . . 3 . . . . . . . . . . . . . . . . . . . Detonate 2 | . . 2 . . . . . . . . . . . . . . . . . . . . . . . Operators 2 | . . 1 . . . 1 . . . . . . . . . . . . . . . . . . . Fabricators . | . . . . . . . . . . . . . . . . . . . . . . . . . . Repair Stations . | . . . . . . . . . . . . . . . . . . . . . . . . . . Recycling Units 3 | . 1 2 . . . . . . . . . . . . . . . . . . . . . . . Tunnel 3 | . 1 2 . . . . . . . . . . . . . . . . . . . . . . . Scanalyzers . | . . . . . . . . . . . . . . . . . . . . . . . . . . Garrison Access . | . . . . . . . . . . . . . . . . . . . . . . . . . . Data Cores Recovered . | . . . . . . . . . . . . . . . . . . . . . . . . . . Used . | . . . . . . . . . . . . . . . . . . . . . . . . . . Hacking Detections 35 | . 6 8 . . . 9 2 . 3 . . . . 2 . . . . 1 . . . . 1 3 Full Trace Events 4 | . . 1 . . . 1 1 . . . . . . . . . . . . . . . . . 1 Feedback Events . | . . . . . . . . . . . . . . . . . . . . . . . . . . Feedback Blocked . | . . . . . . . . . . . . . . . . . . . . . . . . . . Robot Schematics Acquired 4 | . . . . . . . . . . . . 4 . . . . . . . . . . . . . Robots Built . | . . . . . . . . . . . . . . . . . . . . . . . . . . Authchips . | . . . . . . . . . . . . . . . . . . . . . . . . . . Time . | . . . . . . . . . . . . . . . . . . . . . . . . . . Total Robot Build Rating . | . . . . . . . . . . . . . . . . . . . . . . . . . . Part Schematics Acquired 22 | . 1 1 . . . 3 . . 1 . . 12 . . . . . . . . . 4 . . . Parts Built 4 | . . . . . . . . . . . . . . 2 . . . . . . . . . . 2 Authchips 1 | . . . . . . . . . . . . . . 1 . . . . . . . . . . . Time 88 | . . . . . . . . . . . . . . 42 . . . . . . . . . . 46 Total Part Build Rating 26 | . . . . . . . . . . . . . . 8 . . . . . . . . . . 18 Parts Repaired 7 | . 3 2 . . . 1 . . 1 . . . . . . . . . . . . . . . . Time 200 | . 78 52 . . . 38 . . 32 . . . . . . . . . . . . . . . . Parts Recycled . | . . . . . . . . . . . . . . . . . . . . . . . . . . Recycled Matter . | . . . . . . . . . . . . . . . . . . . . . . . . . . Retrieved Matter . | . . . . . . . . . . . . . . . . . . . . . . . . . . Retrieved Components . | . . . . . . . . . . . . . . . . . . . . . . . . . . Parts Scanalyzed 6 | . . 1 . . . 3 . . 2 . . . . . . . . . . . . . . . . Part Schematics Acquired 5 | . . 1 . . . 3 . . 1 . . . . . . . . . . . . . . . . Parts Damaged . | . . . . . . . . . . . . . . . . . . . . . . . . . . Bothacking | -11 -10 -9 -9 -9 -8 -8 -7 -7 -6 -6 -6 -6 -5 -5 -5 -5 -5 -4 -4 -4 -4 -4 -3 -3 -3 ------------ Run | Scr Mat Mat Min Exi Min Mat Fac DSF Fac Low Low Dat Pro Fac Upp Upp War Pro Fac Upp Upp Zhi Pro Res Tes Used RIF Installer . | . . . . . . . . . . . . . . . . . . . . . . . . . . Robots Hacked . | . . . . . . . . . . . . . . . . . . . . . . . . . . Non-combat . | . . . . . . . . . . . . . . . . . . . . . . . . . . Combat . | . . . . . . . . . . . . . . . . . . . . . . . . . . Robot Hacks Applied . | . . . . . . . . . . . . . . . . . . . . . . . . . . Relay Couplers Released . | . . . . . . . . . . . . . . . . . . . . . . . . . . Fabnet Peak Effective % . | . . . . . . . . . . . . . . . . . . . . . . . . . . Robots Rewired . | . . . . . . . . . . . . . . . . . . . . . . . . . . Allies Hacked . | . . . . . . . . . . . . . . . . . . . . . . . . . . Hacks Repelled . | . . . . . . . . . . . . . . . . . . . . . . . . . . Allies | -11 -10 -9 -9 -9 -8 -8 -7 -7 -6 -6 -6 -6 -5 -5 -5 -5 -5 -4 -4 -4 -4 -4 -3 -3 -3 -------- Run | Scr Mat Mat Min Exi Min Mat Fac DSF Fac Low Low Dat Pro Fac Upp Upp War Pro Fac Upp Upp Zhi Pro Res Tes Total Allies 4 | . . . 3 . . . . . . . . . 1 . . . . . . . . . . . . Largest Group 3 | . . . 3 3 . . . . . . . . 1 . . . . . . . . . . . . Highest-Rated Group 95 | . . . 71 71 . . . . . . . . 95 . . . . . . . . . . . . Highest-Rated Ally 95 | . . . 31 31 . . . . . . . . 95 . . . . . . . . . . . . Total Orders . | . . . . . . . . . . . . . . . . . . . . . . . . . . Ally Attacks 10 | . . . . . . . . . . . . . 10 . . . . . . . . . . . . Total Damage 276 | . . . . . . . . . . . . . 276 . . . . . . . . . . . . Kills 3 | . . . . . . . . . . . . . 3 . . . . . . . . . . . . Allies Corrupted . | . . . . . . . . . . . . . . . . . . . . . . . . . . Allies Melted . | . . . . . . . . . . . . . . . . . . . . . . . . . . Intel | -11 -10 -9 -9 -9 -8 -8 -7 -7 -6 -6 -6 -6 -5 -5 -5 -5 -5 -4 -4 -4 -4 -4 -3 -3 -3 ------- Run | Scr Mat Mat Min Exi Min Mat Fac DSF Fac Low Low Dat Pro Fac Upp Upp War Pro Fac Upp Upp Zhi Pro Res Tes Robot Analysis Total 8 | . . 1 . . . 1 . . . . . . . . . . . . . . . 4 . 2 . Derelict Logs Recovered 12 | . . . 2 . . . . . . 1 1 . 2 . 1 1 . 2 . 1 1 . . . . Drone Launches . | . . . . . . . . . . . . . . . . . . . . . . . . . . Drone Recoveries . | . . . . . . . . . . . . . . . . . . . . . . . . . . Exploration | -11 -10 -9 -9 -9 -8 -8 -7 -7 -6 -6 -6 -6 -5 -5 -5 -5 -5 -4 -4 -4 -4 -4 -3 -3 -3 ------------- Run | Scr Mat Mat Min Exi Min Mat Fac DSF Fac Low Low Dat Pro Fac Upp Upp War Pro Fac Upp Upp Zhi Pro Res Tes Turns Passed 12726 | 97 1752 2103 873 246 795 955 237 245 1789 331 362 87 469 618 125 179 419 188 121 149 109 57 164 125 131 Spaces Moved 10056 | 49 914 1060 493 158 523 555 166 108 823 266 296 77 328 358 342 360 805 481 276 484 441 153 289 82 169 Core 322 | 6 . . . . . . . . 8 . . . . . . 23 48 . 1 . . . 55 23 158 Treads 3226 | 43 914 1060 438 91 105 85 . 24 225 . . . . 187 . . . . . . . . . 45 9 Legs 1232 | . . . . . . . . . 191 266 296 77 328 58 . . . . . . . . . 14 2 Wheels 1603 | . . . 55 67 418 470 166 84 343 . . . . . . . . . . . . . . . . Hover 56 | . . . . . . . . . 56 . . . . . . . . . . . . . . . . Flight 3617 | . . . . . . . . . . . . . . 113 342 337 757 481 275 484 441 153 234 . . Fastest Speed 17 | 50 160 160 135 120 120 135 135 135 72 114 114 114 114 32 32 30 20 17 24 18 21 21 21 50 50 Average Speed 102 | 148 160 160 157 149 136 138 135 142 159 114 114 114 114 112 32 45 45 25 26 25 21 21 38 122 57 Slowest Speed 800 | 160 160 160 160 160 160 160 150 160 800 114 114 114 120 190 34 250 300 96 500 101 21 21 96 145 225 Overloaded Moves 23 | . . . . . . . . . . . . . . . . . 13 3 . 7 . . . . . Propulsion Burnouts . | . . . . . . . . . . . . . . . . . . . . . . . . . . Robots Hopped 17 | . . . . . . . . . . . . . . 2 2 1 7 . 5 . . . . . . Cave-ins Triggered . | . . . . . . . . . . . . . . . . . . . . . . . . . . Exploration Rate (%) 53 | 4 95 76 97 51 96 54 6 71 15 54 57 68 48 13 61 63 93 66 8 65 67 60 55 4 33 Regions Visited 25 Branch Regions 16 Pre-discovered Areas 12 | . 1 2 . 1 . . . . . . 1 1 1 . . 1 . . . 1 . 3 . . . Known Exits Taken 17 | . . . . . . . 1 . 1 1 1 1 1 1 1 1 1 1 1 1 1 1 1 1 . Unknown Exits Taken 7 | 1 1 1 1 1 1 1 . . . . . . . . . . . . . . . . . . . Scrap Searched 19 | . . . 3 . 1 . . . . . . . 4 . 2 3 . 2 . . 1 . 3 . . Spaces Dug 69 | . . . . . . 11 . 3 23 1 . . 11 3 1 . 1 7 5 1 . . . . 2 Terrain Destroyed 845 | . . 108 37 . 82 34 . 3 125 1 38 . 173 63 1 20 1 65 5 83 . . . 1 5 Melee 29 | . . . . . . . . 3 7 1 . . . 3 1 . 1 7 5 1 . . . . . Projectile 32 | . . 1 . . . 11 . . 13 . . . . 1 . . . . . . . . . 1 5 AOE 784 | . . 107 37 . 82 23 . . 105 . 38 . 173 59 . 20 . 58 . 82 . . . . . Terrain Rammed . | . . . . . . . . . . . . . . . . . . . . . . . . . . Walls Destroyed . | . . . . . . . . . . . . . . . . . . . . . . . . . . Machines Disabled . | . . . . . . . . . . . . . . . . . . . . . . . . . . Actions | -11 -10 -9 -9 -9 -8 -8 -7 -7 -6 -6 -6 -6 -5 -5 -5 -5 -5 -4 -4 -4 -4 -4 -3 -3 -3 --------- Run | Scr Mat Mat Min Exi Min Mat Fac DSF Fac Low Low Dat Pro Fac Upp Upp War Pro Fac Upp Upp Zhi Pro Res Tes Total 11538 | 63 1096 1307 549 168 565 690 177 154 1083 281 316 76 398 477 349 370 843 527 303 509 458 172 324 93 190 Wait 333 | . 71 54 16 9 9 42 3 . 23 . 12 . 27 15 3 . 10 11 1 6 8 3 9 1 . Move 10002 | 48 913 1059 492 157 522 554 165 107 822 265 295 76 327 354 337 357 792 480 267 483 440 152 288 81 169 Hop 13 | . . . . . . . . . . . . . . 2 2 1 5 . 3 . . . . . . Pick Up 108 | 4 20 19 2 . 1 10 2 2 12 3 1 . 5 6 1 2 4 4 1 4 4 1 . . . Fast Attach 117 | 7 2 12 1 1 . 6 1 . 27 1 1 . 5 6 3 4 11 6 8 1 1 5 3 4 1 Attach 76 | . 3 10 2 . 1 3 2 2 17 1 . . 3 11 1 1 . 3 2 5 1 1 3 . 4 Detach 38 | . 3 1 . . . 3 1 . 14 . . . . 4 . 1 . . 2 1 1 1 4 . 2 Swap 146 | . 8 30 13 . 8 21 1 12 33 . 2 . 5 12 . . . . . . . . 1 . . Drop 148 | . 9 28 1 1 . 19 1 4 11 3 2 . 9 13 1 2 15 6 6 6 3 5 2 . 1 Fire 396 | 4 62 83 20 . 20 26 . 20 88 . 2 . 13 36 . 2 . 1 . 2 . . . 7 10 Melee 133 | . . 4 . . . . . 6 36 8 1 . 4 18 1 . 6 16 13 1 . 4 14 . 1 Ram 2 | . . . . . . . . . . . . . . . . . . . . . . . . . 2 Kick . | . . . . . . . . . . . . . . . . . . . . . . . . . . Crush 25 | . 5 7 2 . 4 6 1 . . . . . . . . . . . . . . . . . . Escape Stasis . | . . . . . . . . . . . . . . . . . . . . . . . . . . Rewire 1 | . . . . . . . . 1 . . . . . . . . . . . . . . . . . Trap . | . . . . . . . . . . . . . . . . . . . . . . . . . . Miscellaneous . | . . . . . . . . . . . . . . . . . . . . . . . . . . Route ------- -11/Scrapyard -10/Materials (discovered 5 exits: *Mat x3 / [*Min x2]) -9/Materials (discovered 4 exits: *Mat / *Min / [*Sto x2]) -9/Mines (discovered 4 exits: *Mat x2 / *Exi / [*Zio]) -9/Exiles -8/Mines (discovered 2 exits: *Mat x2) -8/Materials -7/Factory -7/DSF -6/Factory (discovered 4 exits: *Low x2 / Ext x2) -6/Lower Caves -6/Lower Caves (discovered 2 exits: *Fac / *Dat) -6/Data Miner -5/Proximity Caves -5/Factory -5/Upper Caves -5/Upper Caves (discovered 2 exits: *Fac / *War) -5/Warlord -4/Proximity Caves -4/Factory (discovered 3 exits: *Upp x2 / Arm) -4/Upper Caves -4/Upper Caves (discovered 2 exits: *Res / *Zhi) -4/Zhirov -3/Proximity Caves -3/Research -3/Testing History --------- Turn | Location | Event 16 | -11/Scrapyard | Discovered new exit (range 16) 98 | -11/Scrapyard | Entered Materials 189 | -10/Materials | Discovered new exit (range 11) 317 | -10/Materials | Build established: Mutant 407 | -10/Materials | Repaired Lgt. Treads 461 | -10/Materials | Discovered new exit (range 11) 606 | -10/Materials | Discovered new exit (range 10) 796 | -10/Materials | Discovered new exit (range 6) 1036 | -10/Materials | Repaired Lgt. Treads 1063 | -10/Materials | Repaired Lgt. Treads 1119 | -10/Materials | Discovered new exit (range 16) 1850 | -10/Materials | Entered another Materials area 1850 | -9/Materials | Evolved 2 slots: Propulsion x1, Utility x1 2011 | -9/Materials | Lost 3 parts (1p2u) 2247 | -9/Materials | Build established: Scavenger-Mutant 2263 | -9/Materials | Discovered new exit (range 15) 2417 | -9/Materials | Discovered new exit (range 9) 2647 | -9/Materials | Discovered new exit (range 15) 2711 | -9/Materials | Repaired Lgt. Treads 2712 | -9/Materials | Lost 4 parts (1n1u2w) 2737 | -9/Materials | Repaired Lgt. Treads? 2946 | -9/Materials | Build established: Mutant 3015 | -9/Materials | Discovered new exit (range 5) 3562 | -9/Materials | Core integrity fell below 50% 3892 | -9/Materials | Build established: Scavenger-Mutant 3953 | -9/Materials | Entered Mines 4122 | -9/Mines | Discovered new exit (range 13) 4129 | -9/Mines | Met a Derelict who couldn't figure out how to use a Trap Extractor 4304 | -9/Mines | A Derelict revealed a hidden shortcut to a safe place 4322 | -9/Mines | Build established: Mutant 4352 | -9/Mines | Discovered new exit (range 7) 4570 | -9/Mines | Learned 4 Materials zone layouts 4666 | -9/Mines | Received a Mining Laser from a helpful Derelict 4768 | -9/Mines | Deemed a non-threat by the Exiles lab entrance 4768 | -9/Mines | Discovered new exit (range 5) 4826 | -9/Mines | Entered Exiles 4826 | -9/Exiles | Accompanied by 3 allies 4856 | -9/Exiles | Led the pair of lost Derelicts to a safe place 4875 | -9/Exiles | Met 8R-AWN 4903 | -9/Exiles | Met EX-HEX 4952 | -9/Exiles | Met EX-BIN 4975 | -9/Exiles | Met EX-DEC 4981 | -9/Exiles | Learned location of Zion (-7) 5059 | -9/Exiles | Discovered new exit (range 11) 5072 | -9/Exiles | Entered Mines 5357 | -8/Mines | Discovered new exit (range 5) 5548 | -8/Mines | Discovered new exit (range 5) 5867 | -8/Mines | Entered Materials 5867 | -8/Materials | Evolved 2 slots: Propulsion x1, Weapon x1 6279 | -8/Materials | Destroyed 7 combat bots 6355 | -8/Materials | Repaired Trap Scanner? 6471 | -8/Materials | Build established: Gunner 6775 | -8/Materials | Discovered new exit (range 10) 6822 | -8/Materials | Entered Factory 6822 | -7/Factory | Evolved 2 slots: Utility x2 7059 | -7/Factory | Identified exit to DSF 7059 | -7/Factory | Entered DSF 7099 | -7/DSF | Additional patrols routed to DSF 7135 | -7/DSF | Discovered new exit (range 16) 7224 | -7/DSF | Sterilization system engaged 7244 | -7/DSF | Ambient heat levels rising (+10) 7259 | -7/DSF | Ambient heat levels rising (+10) 7274 | -7/DSF | Ambient heat levels rising (+10) 7289 | -7/DSF | Ambient heat levels rising (+10) 7302 | -7/DSF | Identified exit to Factory 7304 | -7/DSF | Ambient heat levels rising (+10) 7304 | -7/DSF | Entered Factory 7304 | -6/Factory | Evolved 2 slots: Propulsion x1, Utility x1 7320 | -6/Factory | Identified exit to Lower Caves 7320 | -6/Factory | Identified exit to Extension 7532 | -6/Factory | Repaired Arm. Wheel 7963 | -6/Factory | Build established: Mutant 8267 | -6/Factory | Cargo convoy interrupted 8279 | -6/Factory | Lost 4 parts (3n1w) 8354 | -6/Factory | First assault squad dispatched 8393 | -6/Factory | Found Prototype Device 8393 | -6/Factory | Identified Active Sensor Suite 8468 | -6/Factory | Destroyed 8 combat bots 8512 | -6/Factory | Lost 9 parts (2p3n4w) 8793 | -6/Factory | Core integrity fell below 50% 8796 | -6/Factory | Lost 4 parts (1p2n1w) 9093 | -6/Factory | Entered Lower Caves 9185 | -6/Lower Caves | Attracted the attention of an 0b10 checkpoint 9225 | -6/Lower Caves | Build established: Scavenger-Mutant 9417 | -6/Lower Caves | Discovered new exit (range 7) 9419 | -6/Lower Caves | Learned Factory emergency access door positions 9422 | -6/Lower Caves | Identified exit to Lower Caves 9424 | -6/Lower Caves | Entered another Lower Caves area 9515 | -6/Lower Caves | Discovered new exit (range 11) 9552 | -6/Lower Caves | Learned location of Extension (-6) 9554 | -6/Lower Caves | Attracted the attention of an 0b10 checkpoint 9775 | -6/Lower Caves | Discovered new exit (range 12) 9785 | -6/Lower Caves | Identified exit to Data Miner 9786 | -6/Lower Caves | Entered Data Miner 9786 | -6/Data Miner | Discovered new exit (range 6) 9808 | -6/Data Miner | Met Data Miner 9831 | -6/Data Miner | Learned location of Section 7 (-2) 9831 | -6/Data Miner | Acquired the access code to Warlord's prototype stash 9847 | -6/Data Miner | Received God Mode back door access code from Data Miner 9872 | -6/Data Miner | Identified exit to Proximity Caves 9873 | -6/Data Miner | Entered Proximity Caves 10007 | -5/Proximity Caves | Escorted by Enhanced Grunt 10012 | -5/Proximity Caves | Attracted the attention of an 0b10 checkpoint 10042 | -5/Proximity Caves | Spotted B-75 Beast 10336 | -5/Proximity Caves | Discovered new exit (range 5) 10338 | -5/Proximity Caves | Identified exit to Factory 10342 | -5/Proximity Caves | Entered Factory 10342 | -5/Factory | Evolved 2 slots: Propulsion x1, Utility x1 10343 | -5/Factory | Identified exit to Upper Caves 10426 | -5/Factory | Fabricated Adv. Assault Cannon (x2) 10552 | -5/Factory | Lost 5 parts (3n2u) 10814 | -5/Factory | Build established: Mutant 10960 | -5/Factory | Entered Upper Caves 10962 | -5/Upper Caves | Lost 10 parts (3n3u4w) 11032 | -5/Upper Caves | Encountered a Warlord checkpoint 11037 | -5/Upper Caves | Identified exit to Upper Caves 11085 | -5/Upper Caves | Entered another Upper Caves area 11105 | -5/Upper Caves | Discovered new exit (range 12) 11124 | -5/Upper Caves | Core integrity fell below 50% 11216 | -5/Upper Caves | Learned location of Armory (-4) 11245 | -5/Upper Caves | Spotted B-75 Beast 11261 | -5/Upper Caves | Discovered new exit (range 12) 11264 | -5/Upper Caves | Identified exit to Warlord 11264 | -5/Upper Caves | Entered Warlord 11274 | -5/Warlord | System corruption cleaned by Quarantine Array 11433 | -5/Warlord | Received a Watcher feed algorithm from an ecstatic Tinkerer 11456 | -5/Warlord | Found Prototype Device 11456 | -5/Warlord | Identified Minesniffer Drone Bay 11507 | -5/Warlord | Warlord's base attacked by MAIN.C 11529 | -5/Warlord | Found Prototype Piercing Weapon 11529 | -5/Warlord | Identified Vortex Lance 11534 | -5/Warlord | Found Prototype Launcher 11582 | -5/Warlord | Met Warlord 11585 | -5/Warlord | Opened Warlord's prototype stash 11596 | -5/Warlord | Found Prototype Device 11596 | -5/Warlord | Identified Exp. Phase Shifter 11624 | -5/Warlord | Found Prototype Device 11624 | -5/Warlord | Identified Thermal Barrier 11640 | -5/Warlord | Found Prototype Reactor 11675 | -5/Warlord | Opened side exit 11681 | -5/Warlord | Discovered new exit (range 8) 11683 | -5/Warlord | Identified exit to Proximity Caves 11683 | -5/Warlord | Entered Proximity Caves 11694 | -4/Proximity Caves | Found Alien Artifact 11694 | -4/Proximity Caves | Identified Dimensional Node Initializer 11694 | -4/Proximity Caves | Initialized slip node 11705 | -4/Proximity Caves | Spotted B-86 Titan 11822 | -4/Proximity Caves | Identified Vortex Catalyst Activator 11852 | -4/Proximity Caves | Discovered new exit (range 9) 11854 | -4/Proximity Caves | Identified exit to Factory 11871 | -4/Proximity Caves | Entered Factory 11871 | -4/Factory | Evolved 2 slots: Power x1, Utility x1 11872 | -4/Factory | Identified Vortex Chain Reactor 11964 | -4/Factory | Identified exit to Upper Caves 11964 | -4/Factory | Identified exit to Armory 11992 | -4/Factory | Entered Upper Caves 12137 | -4/Upper Caves | Discovered new exit (range 9) 12140 | -4/Upper Caves | Identified exit to Upper Caves 12141 | -4/Upper Caves | Entered another Upper Caves area 12161 | -4/Upper Caves | Learned Research stockpile data 12169 | -4/Upper Caves | Discovered new exit (range 8) 12239 | -4/Upper Caves | Discovered new exit (range 10) 12250 | -4/Upper Caves | Identified exit to Zhirov 12250 | -4/Upper Caves | Entered Zhirov 12254 | -4/Zhirov | Discovered new exit (range 3) 12254 | -4/Zhirov | Identified exit to Proximity Caves 12262 | -4/Zhirov | Learned location of Quarantine (-2) 12262 | -4/Zhirov | Learned location of Testing (-3) 12264 | -4/Zhirov | Build established: Hacker-Sprinter 12269 | -4/Zhirov | Found Alien Artifact 12269 | -4/Zhirov | Identified Integrated Dissipator 12269 | -4/Zhirov | Installed Integrated Dissipator, increased core heat dissipation (+20) 12307 | -4/Zhirov | Entered Proximity Caves 12383 | -3/Proximity Caves | Attracted the attention of an 0b10 checkpoint 12388 | -3/Proximity Caves | Lost 5 parts (4n1u) 12462 | -3/Proximity Caves | Discovered new exit (range 14) 12469 | -3/Proximity Caves | Identified exit to Research 12471 | -3/Proximity Caves | Entered Research 12471 | -3/Research | Evolved 2 slots: Propulsion x1, Utility x1 12472 | -3/Research | Identified exit to Testing 12596 | -3/Research | Entered Testing 12676 | -3/Testing | Lost 7 parts (1n5u1w) 12695 | -3/Testing | Core integrity fell below 50% 12704 | -3/Testing | Incoming investigation squad redirected 12711 | -3/Testing | Fabricated Quantum Reactor? 12712 | -3/Testing | Core integrity fell below 20% 12727 | -3/Testing | Destroyed by S-43 Plague with Heavy Machine Gun Last Messages --------------- Querying network status... 2 records found: (56,52) - Building: G-67 Veteran (26,52) - Building: Quantum Reactor 12685_ ALERT: Suspicious activity at Fabricator T001. Dispatching Investigation squad. 12685_ K-01 Serf cleans the Fabricator. 12688_ Slammed into S-43 Plague. 12693_ K-01 Serf cleans the Biostasis Chamber. 12695_ Adv. Melee Analysis Suite destroyed. 12696_ K-01 Serf cleans the Biostasis Chamber. 12700_ ALERT: Hostiles spotted, dispatching reinforcements to Terminal T002. 12704_ ALERT: Higher priority target reported, redirecting investigation. 12711_ >> FABRICATOR: Completed Quantum Reactor? 12719_ Slammed into K-01 Serf. 12719_ Imp. Signal Interpreter destroyed. 12719_ System corrupted by crushing effect (+4). 12725_ Acquired Prototype Storage. 12725_ Identified Adv. Matter Compressor. Map ----- +----------------------------------------------------+ | ?"" """ # # """ ""??????? ??????????????????? | | ??" """ # # """ ""??????# ?????#????????????? | | ?? """?# #? ??????# "???? #????????????? | | ?? """?# #? ] ??????# "?? #????????????? | | ???! ??# #??######?????# """ #????????????? | | ########## ############### #????????????? | | = + " #????????????? | | # """ #????????????? | | """ """ """ + """ #????????????? | | """ """ """ # """ #????????????? | | """ """ """ ############# # #????????????? | | #???????????# # #????????????? | | """ """ """ #???????????# # #????????????? | | """ """ """ #???????????# # #????????????? | | """ """ """ #???????????#s# #????????????? | | #???????????# # #????????????? | | ? ? #?????#######/# #????????????? | | ##?###?####+#+#?????# s#########????????????? | | ????????????????????# s #????????????????????? | | ????????????????????# #????????????????????? | | ????????????????????# "" s#????????????????????? | | ????????????????????# "" s #????????????????????? | | ????????????????????# "" s #????????????????????? | | ????????????????????# S #????????????????????? | | ????????????????????# "" ] #????????????????????? | | ????????????????????# "" @!!#????????????????????? | | ????????????????????# "" u #????????????????????? | | ????????????????????# k #????????????????????? | | ????????????????????####;####????????????????????? | | ???????????????????????h ????????????????????????? | | ?????????????????????? ????????????????????????? | | ????????????????????? h ????????????????????????? | | ???????????????????? ????????????????????????? | | ???????????????????######????????????????????????? | | ?????????????????????????????????????????????????? | | ?????????????????????????????????????????????????? | | ?????????????????????????????????????????????????? | | ?????????????????????????????????????????????????? | | ?????????????????????????????????????????????????? | | ?????????????????????????????????????????????????? | | ?????????????????????????????????????????????????? | | ?????????????????????????????????????????????????? | | ?????????????????????????????????????????????????? | | ?????????????????????????????????????????????????? | | | | | | | | | | | | | +----------------------------------------------------+ Best States ------------- Heat Dissipation 69 Energy Generation 55 Energy Capacity 700 Matter Stores 300 Matter Capacity 300 Sight Range 18 Robot Scan Range 14 Terrain Scan Range 20 Terrain Scan Density 10 Jamming Range 12 Armor Coverage 450 Resistance: KI 20 Propulsion Shielding 66 Utility Shielding 33 Weapon Shielding 66 Weapon Cycling 15 Evasion (%) 66 Targeting Accuracy 8 Melee Accuracy 14 Armor Integrity Analysis 40 Recoil Reduction 5 Offensive Hacking 28 Defensive Hacking 21 Authchip Count 1 Item Schematics ----------------- Hcp. Storage Unit | -10/Materials | Hacked Weapon Shielding | -9/Materials | Scanalyzed Gauss Rifle | -8/Materials | Scanalyzed Imp. Terrain Scanner | -8/Materials | Scanalyzed Lrn. Tractor Beam | -8/Materials | Scanalyzed Adv. Assault Cannon | -6/Factory | Scanalyzed Combat Drone Bay | -6/Data Miner | Free Lgt. Regenerative Plating | -6/Data Miner | Free Enh. Armored Leg | -6/Data Miner | Free Imp. Energy Well | -6/Data Miner | Free Hvy. Proton Missile Launcher | -6/Data Miner | Free Field Propulsion Array | -6/Data Miner | Free Adv. Target Analyzer | -6/Data Miner | Free Railgun | -6/Data Miner | Free Imp. Weapon Cycler | -6/Data Miner | Free Adv. Thermal Shield | -6/Data Miner | Free Imp. Heavy Treads | -6/Data Miner | Free Antimissile System | -6/Data Miner | Free Assault Drone Bay | -4/Zhirov | Free Exp. Heat Sink | -4/Zhirov | Free Exp. Optical Array | -4/Zhirov | Free Imp. Arc Thrower | -4/Zhirov | Free Robot Schematics ------------------ B-60 Warrior | -6/Data Miner | Free A-15 Conveyor | -6/Data Miner | Free E-15 Imp | -6/Data Miner | Free H-66 Slayer | -6/Data Miner | Free Fabricated ------------ Adv. Assault Cannon | x2 | -5/Factory | Authchip Quantum Reactor | x2 | -3/Testing | Preloaded Alien Tech Used ----------------- Dimensional Node Initializer Integrated Dissipator Achievements -------------- None Challenges ------------ None Game ------ Seed ChainDecoderLog Manual? 0 Play Time 03:00:29 Cumulative 137.0 hours Start 2021.11.22 @ 03:40:04 End 2021.11.22 @ 17:54:11 Sessions 11 Manual Loads 0 Difficulty Rogue Special Mode None Game No. 82 Rogue 82 Adventurer 0 Explorer 0 Win Type - Total 3 Types 2/0/0/1/0/0/0/0/0 Lore% 69 Gallery% 77 Achievement% 55 Wizard Run 0 Options --------- ASCII 0 Keyboard 1 Movement Vi Keybinds 0 Fullscreen 2 Font 18/Cog Map View 76x50 Tactical HUD 1 Map Filters NONE Filters NONE Steam 0 RUN: 0e24fbf0-b11e-4008-b27d-7400e3fca35e